bitfinex-derivatives/quotes_ETHF0:USTF0_20250416
["timestamp","ask_amount","ask_price","bid_price","bid_amount"]
[1744777209232,2.95902046,1579.9,1579.7,3.76113]
[1744777209534,1.27552046,1579.9,1579.7,3.76113]
[1744777209833,1.27552046,1579.9,1579.7,3.76108]
[1744777210032,1.26616,1579.7,1579.6,0.00948046]
[1744777210233,1.26656,1579.2,1579.1,3.2078]
[1744777210433,1.26676,1579.0,1578.8,1.26682]
[1744777210631,6.37419,1579.3,1578.8,1.26682]
[1744777210632,1.26658,1579.2,1578.9,1.57793972]
[1744777210829,3.2078,1579.3,1579.0,1.26668]
[1744777211129,3.2078,1579.3,1578.9,1.57793972]
[1744777211130,1.26675,1579.0,1578.6,1.6918]
[1744777211331,0.00948046,1579.0,1578.8,1.26688]
[1744777211529,0.00948046,1579.0,1578.9,1.2668]
[1744777211922,1.27620046,1579.0,1578.7,8.1398]
[1744777212329,1.26687,1578.9,1578.7,4.932]
[1744777212529,1.26687,1578.9,1578.7,6.1989]
[1744777212929,1.26688,1578.8,1578.7,6.1989]
[1744777213132,1.26696,1578.7,1578.6,1.6918]
[1744777213329,8.1408,1578.9,1578.5,1.26708]
[1744777213526,1.26704,1578.7,1578.5,1.26708]
[1744777213729,3.2078,1578.9,1578.8,1.26688]
[1744777214037,4.47465,1578.9,1578.6,43.3318]
[1744777214230,4.47466,1578.9,1578.7,2.97882]
[1744777214636,1.26688,1578.8,1578.7,2.97882]
[1744777215027,1.26688,1578.8,1578.7,1.7119]
[1744777216037,4.8392,1578.9,1578.7,2.97886]
[1744777216235,1.26688,1578.8,1578.7,1.7119]
[1744777217332,1.26688,1578.8,1578.7,2.97886]
[1744777217530,1.26687,1578.9,1578.7,1.7119]
[1744777217737,0.00948046,1579.0,1578.7,2.97881]
[1744777217930,1.26688,1578.8,1578.7,2.97881]
[1744777218234,1.26688,1578.8,1578.7,2.97886]
[1744777218636,1.26688,1578.8,1578.7,1.7119]
[1744777218839,1.26688,1578.8,1578.7,2.97886]
[1744777219133,3.16743,1578.7,1577.6,3.2078]
[1744777219340,1.26736,1578.2,1578.1,0.8525]
[1744777219730,1.26744,1578.1,1578.0,40.8]
[1744777219925,1.26744,1578.1,1578.0,42.4821]
[1744777220134,1.26744,1578.1,1578.0,1.6821]
[1744777220532,2.88421046,1578.2,1578.0,1.6821]
[1744777220732,2.88420046,1578.2,1578.1,40.8]
[1744777221135,6.61678046,1578.2,1577.8,0.8525]
[1744777221433,6.37644,1578.1,1577.7,2.5291]
[1744777221633,1.2676,1578.0,1577.9,1.2676]
[1744777221835,3.2078,1578.1,1577.9,2.94967]
[1744777222036,4.47529,1578.1,1577.9,2.94967]
[1744777222335,1.26752,1578.0,1577.9,1.6821]
[1744777222540,2.96292,1578.0,1577.9,1.6821]
[1744777222836,1.6954,1578.0,1577.8,41.6525]
[1744777223029,1.2676,1577.9,1577.8,2.5452]
[1744777223232,1.2676,1577.9,1577.8,0.8525]
[1744777223636,6.37652,1578.1,1577.9,1.26756]
[1744777223637,3.2078,1578.1,1577.9,1.26756]
[1744777223847,4.47528,1578.1,1577.9,1.26756]
[1744777224140,4.47481,1578.7,1578.1,1.26744]
[1744777224337,1.26701,1578.7,1578.5,1.26707]
[1744777224537,6.33003,1578.7,1578.5,1.26707]
[1744777224735,6.33003,1578.7,1578.4,4.937]
[1744777224736,3.2078,1578.7,1578.6,1.26704]
[1744777224936,5.063,1578.7,1578.3,0.7959]
[1744777225140,1.26719,1578.5,1578.3,2.06314]
[1744777225342,1.2672,1578.4,1578.3,0.80538046]
[1744777225637,8.1224,1578.4,1578.3,1e-08]
[1744777225844,10.69683,1578.4,1577.7,4.937]
[1744777226043,1.26754,1578.0,1577.9,1.26757]
[1744777226242,3.2078,1578.2,1577.7,4.937]
[1744777226444,4.4752,1578.2,1578.0,1.26747]
[1744777226642,4.4752,1578.2,1578.1,1.26744]
[1744777226945,3.2078,1578.2,1578.1,1.26744]
[1744777227446,3.2078,1578.2,1578.1,42.06744]
[1744777227935,3.2078,1578.2,1578.1,42.89154]
[1744777228336,4.47516,1578.2,1578.1,41.6241]
[1744777228542,4.9267,1578.4,1578.1,42.89151]
[1744777228748,5.51432999,1578.4,1578.1,42.89151]
[1744777228937,1.26734,1578.3,1578.1,42.89151]
[1744777229138,1.26733,1578.3,1578.1,42.8915]
[1744777229332,1.85497999,1578.3,1578.1,42.8915]
[1744777229545,3.59837999,1578.3,1578.1,42.8915]
[1744777229738,4.47516,1578.2,1578.1,41.6241]
[1744777229940,3.2078,1578.2,1578.1,42.89154]
[1744777230143,4.47516,1578.2,1578.1,41.6241]
[1744777230342,1.26755,1578.0,1577.9,1.2676]
[1744777230643,1.26755,1578.0,1577.8,4.938]
[1744777230837,1.26755,1578.0,1577.9,42.0676]
[1744777231037,3.2078,1578.2,1578.1,1.26744]
[1744777231236,3.2078,1578.2,1578.0,1.26749]
[1744777231449,3.2078,1578.2,1578.1,1.26744]
[1744777232042,4.47516,1578.2,1578.1,1.26744]
[1744777232644,3.2078,1578.2,1578.1,1.26744]
[1744777232841,3.2078,1578.2,1578.1,11.20544]
[1744777233042,3.2078,1578.5,1578.4,1.26719]
[1744777233249,0.00948046,1578.7,1578.6,1.26704]
[1744777233444,3.2078,1578.9,1578.8,1.26688]
[1744777233743,3.00907,1579.4,1579.3,1.26648]
[1744777233944,1.26656,1579.2,1579.1,6.41456]
[1744777234140,1.2665,1579.3,1579.2,1.26654]
[1744777234339,1.26656,1579.2,1579.1,40.8]
[1744777234541,1.26656,1579.2,1579.0,0.00948046]
[1744777234542,1.26664,1579.1,1579.0,0.00948046]
[1744777234737,2.93374,1579.1,1579.0,0.00948046]
[1744777235046,1.26693,1578.8,1578.6,1.26702]
[1744777235347,8.42919255,1579.1,1578.7,1.26693]
[1744777235348,3.2078,1578.9,1578.7,1.26693]
[1744777235839,3.78594953,1578.9,1578.6,1.26701]
[1744777236039,1.26693,1578.8,1578.7,1.26696]
[1744777236238,6.71991953,1578.9,1578.7,1.26696]
[1744777236446,5.45304953,1578.9,1578.7,1.26696]
[1744777236743,1.26691,1578.8,1578.6,2.06188]
[1744777237448,1.26695,1578.8,1578.6,2.06191]
[1744777238647,1.26696,1578.7,1578.6,0.7949]
[1744777239243,3.2078,1578.7,1578.6,0.7949]
[1744777239544,3.16761,1578.6,1578.3,41.6275]
[1744777239847,4.47492,1578.5,1578.4,2.9682]
[1744777240040,1.26712,1578.5,1578.4,1.701]
[1744777240234,5.05306953,1578.5,1578.4,1.701]
[1744777240438,1.2672,1578.4,1578.3,40.8]
[1744777240741,3.79542999,1578.5,1578.4,1.2672]
[1744777241048,0.00948046,1578.5,1578.4,2.9213]
[1744777241248,0.00948046,1578.5,1578.4,8.7167]
[1744777245943,0.00948046,1578.5,1578.4,3.7167]
[1744777246340,3.16644,1579.2,1578.9,1.26673]
[1744777246539,1.60818585,1579.1,1579.0,1.6644]
[1744777246948,2.18633538,1579.1,1579.0,1.6644]
[1744777247245,2.18632174,1579.1,1579.0,1.6644]
[1744777247644,1.84478953,1579.1,1579.0,1.6644]
[1744777247839,2.18624483,1579.1,1579.0,1.6644]
[1744777248251,2.18619045,1579.1,1579.0,1.6644]
[1744777248453,3.92469045,1579.1,1579.0,1.6644]
[1744777248652,3.58328953,1579.1,1579.0,1.6644]
[1744777248951,3.92468289,1579.1,1579.0,1.6644]
[1744777249154,3.58328953,1579.1,1579.0,1.6644]
[1744777249355,1.84478953,1579.1,1579.0,1.6644]
[1744777249746,1.84478953,1579.1,1579.0,2.93112]
[1744777249948,4.48392046,1579.2,1579.1,1.26664]
[1744777250156,1.26664,1579.1,1579.0,2.93112]
[1744777250752,0.57814953,1579.1,1579.0,1.26672]
[1744777250953,1.84483953,1579.1,1579.0,2.86612]
[1744777251155,1.26672,1579.0,1578.9,1.27627046]
[1744777251357,1.26672,1579.0,1578.9,2.86641018]
[1744777251655,3.17597046,1579.2,1578.9,1.59962018]
[1744777251656,0.00948046,1579.2,1578.9,1.59962018]
[1744777251856,1.26672,1579.0,1578.9,1.59962018]
[1744777252057,1.26672,1579.0,1578.9,1.5903599]
[1744777252353,3.21728046,1579.2,1579.1,1.26664]
[1744777252549,1.26664,1579.1,1579.0,4.47446]
[1744777252747,0.57836971,1579.2,1579.1,1.26664]
[1744777252942,1.84492971,1579.2,1579.1,1.26664]
[1744777253449,1.84496971,1579.2,1579.1,1.26664]
[1744777253852,0.57836971,1579.2,1579.0,0.00940405]
[1744777254155,0.57836971,1579.2,1579.1,1.26664]
[1744777255051,1.84492971,1579.2,1579.1,1.26664]
[1744777256559,0.57836971,1579.2,1579.1,1.26664]
[1744777256758,1.84492971,1579.2,1579.1,1.26664]
[1744777256955,0.57836971,1579.2,1579.0,1.62440405]
[1744777257259,0.00022018,1579.2,1579.1,1.26664]
[1744777257458,1.26678018,1579.2,1579.1,1.26664]
[1744777257764,0.57836971,1579.2,1579.1,1.26664]
[1744777257951,0.00022018,1579.2,1579.1,1.26664]
[1744777258758,0.00022018,1579.2,1579.0,1.62440405]
[1744777258963,1.26664,1579.1,1579.0,0.00940405]
[1744777259259,1.60809369,1579.1,1579.0,0.00940405]
[1744777259461,3.84175491,1579.1,1579.0,0.00940405]
[1744777259863,3.50028953,1579.1,1579.0,0.00940405]
[1744777260062,1.2672,1578.4,1578.3,40.8]
[1744777260266,1.26725,1578.4,1578.2,2.89682]
[1744777260561,1.26728,1578.3,1578.2,4.8373]
[1744777261163,1.26728,1578.3,1578.2,40.8]
[1744777261354,2.92278,1578.3,1578.2,40.8]
[1744777261863,2.92278,1578.3,1578.2,42.431]
[1744777262560,0.00948046,1578.4,1578.2,42.431]
[1744777262756,0.00948046,1578.4,1578.3,6.41328]
[1744777262962,3.2078,1579.0,1578.9,1.2668]
[1744777263763,13.65391928,1579.0,1578.8,2.5047]
[1744777263967,13.65391928,1579.0,1578.9,2.8978]
[1744777264352,10.44611928,1579.0,1578.9,2.8978]
[1744777264553,10.44611928,1579.0,1578.9,11.1056]
[1744777264863,6.5768802,1579.0,1578.9,11.1056]
[1744777265164,5.2546802,1579.0,1578.9,11.1056]
[1744777265560,5.2546802,1579.0,1578.9,51.9056]
[1744777266760,0.00948046,1579.1,1579.0,1.26672]
[1744777266957,0.00022018,1579.1,1579.0,7.97142]
[1744777268962,0.00022018,1579.1,1579.0,6.7047]
[1744777269158,0.00022018,1579.1,1578.9,40.8]
[1744777269159,1.26672,1579.0,1578.9,40.8]
[1744777269361,0.00022018,1579.1,1578.9,3.2078]
[1744777269561,0.00022018,1579.1,1579.0,1.26672]
[1744777269762,2.90949,1579.5,1579.3,1.26648]
[1744777269962,2.90949,1579.5,1579.4,1.6049]
[1744777270164,2.9004499,1579.5,1579.4,1.6049]
[1744777270362,2.9004499,1579.5,1579.4,42.4049]
[1744777270571,2.9004499,1579.5,1579.4,43.6713]
[1744777270964,2.9004499,1579.5,1579.4,42.4049]
[1744777271171,2.9004499,1579.5,1579.4,40.8]
[1744777271868,3.21728046,1579.6,1579.5,1.26632]
[1744777272063,0.00948046,1579.6,1579.5,1.26632]
[1744777272268,0.00948046,1579.6,1579.5,7.97202]
[1744777272471,0.00948046,1579.6,1579.5,2.97202]
[1744777273371,1.26632,1579.5,1579.4,44.0078]
[1744777273670,2.95902,1579.5,1579.4,40.8]
[1744777273870,1.26644,1579.4,1579.2,2.10765]
[1744777274073,2.92784,1579.4,1579.2,3.79015]
[1744777274270,2.92784,1579.4,1579.3,40.8]
[1744777275070,2.92784,1579.4,1579.3,42.06648]
[1744777275266,1.26634,1579.5,1579.4,1.2664]
[1744777275463,1.2664,1579.4,1579.3,40.8]
[1744777275668,4.4742,1579.4,1579.3,40.8]
[1744777275865,1.2664,1579.4,1579.3,40.8]
[1744777276775,1.26656,1579.2,1579.1,5.109]
[1744777277276,1.26664,1579.1,1579.0,43.3586]
[1744777277569,1.26672,1579.0,1578.9,6.37574]
[1744777277767,1.26672,1579.0,1578.9,8.04847972]
[1744777277963,1.26688,1578.8,1578.7,40.80948045]
[1744777278174,1.6815,1578.9,1578.7,40.80948045]
[1744777278367,1.26688,1578.8,1578.7,42.07643045]
[1744777279072,2.94836,1578.9,1578.8,1.26688]
[1744777279274,2.94836,1578.9,1578.7,42.07639045]
[1744777279467,1.26688,1578.8,1578.7,42.07639045]
[1744777279672,1.26688,1578.8,1578.7,40.80948045]
[1744777279973,1.2672,1578.4,1578.3,0.8659]
[1744777280174,1.26715,1578.5,1578.3,0.8659]
[1744777280384,1.26712,1578.5,1578.4,1.2672]
[1744777280583,1.26712,1578.5,1578.4,1.6379]
[1744777281285,1.2672,1578.4,1578.3,40.80948046]
[1744777281487,1.2672,1578.4,1578.3,43.71466046]
[1744777281684,1.2672,1578.4,1578.3,42.44738046]
[1744777281898,1.2672,1578.4,1578.3,0.00948046]
[1744777282085,4.475,1578.4,1578.3,0.00948046]
[1744777282384,1.26768,1577.8,1577.7,12.47603235]
[1744777282890,9.47548,1577.8,1577.7,12.47603235]
[1744777283394,2.86908,1577.8,1577.7,12.47603235]
[1744777283588,6.07688,1577.8,1577.7,12.47603235]
[1744777285394,11.07688,1577.8,1577.7,12.47603235]
[1744777285586,6.07688,1577.8,1577.7,12.47603235]
[1744777286089,1.26792,1577.6,1577.4,11.22267]
[1744777286291,0.00948046,1577.7,1577.4,9.9547]
[1744777286492,1.26788,1577.6,1577.4,11.22265]
[1744777286892,1.26793,1577.5,1577.4,6.7469]
[1744777287094,1.26791,1577.6,1577.4,8.01486]
[1744777287395,1.26791,1577.6,1577.5,1.26793]
[1744777287693,1.26791,1577.6,1577.5,2.93273]
[1744777287892,3.03219046,1577.7,1577.5,2.93273]
[1744777288091,0.00948046,1577.7,1577.5,1.6648]
[1744777288289,0.00948046,1577.7,1577.6,2.10304]
[1744777288491,0.00948046,1577.7,1577.6,6.12304]
[1744777288693,1e-08,1577.7,1577.6,11.12304]
[1744777289191,1e-08,1577.7,1577.6,51.92304]
[1744777289698,1e-08,1577.7,1577.6,46.92304]
[1744777289889,1e-08,1577.7,1577.6,51.92304]
[1744777290191,1e-08,1577.7,1577.6,48.71524]
[1744777290592,1.26776001,1577.7,1577.6,47.4474]
[1744777290797,1.26776001,1577.7,1577.6,41.6352]
[1744777291093,1.26776001,1577.7,1577.6,40.8]
[1744777292190,3.03096001,1577.7,1577.6,40.8]
[1744777292697,1.26776001,1577.7,1577.6,40.8]
[1744777292897,3.03096001,1577.7,1577.6,40.8]
[1744777293693,1.26784,1577.6,1577.5,0.00948045]
[1744777293900,6.23884,1577.6,1577.5,0.00948045]
[1744777294092,3.90704,1577.6,1577.5,0.00948045]
[1744777294298,7.11484,1577.6,1577.5,40.80948045]
[1744777294492,7.11484,1577.6,1577.5,0.00948045]
[1744777295703,4.47564,1577.6,1577.5,1.27741045]
[1744777295899,4.47564,1577.6,1577.5,0.00948045]
[1744777296596,6.13484,1577.6,1577.5,1.59888045]
[1744777297407,6.13484,1577.6,1577.5,0.00948045]
[1744777298007,6.13484,1577.6,1577.5,1.59888045]
[1744777298406,4.47564,1577.6,1577.5,2.86681045]
[1744777299206,1.26784,1577.6,1577.5,1.59888045]
[1744777299809,1.26784,1577.6,1577.5,2.86681045]
[1744777300003,1.26784,1577.6,1577.5,2.86674045]
[1744777300303,1.26784,1577.6,1577.5,1.59888045]
[1744777302509,1.26784,1577.6,1577.5,2.86681045]
[1744777303014,1.26784,1577.6,1577.5,1.59888045]
[1744777303310,1.26784,1577.6,1577.5,2.86681045]
[1744777303710,1.26784,1577.6,1577.5,2.86678045]
[1744777304513,1.26784,1577.6,1577.5,1.59888045]
[1744777305007,1.26784,1577.6,1577.5,2.86681045]
[1744777305206,1.26782001,1577.7,1577.6,1.26784]
[1744777305407,1e-08,1577.7,1577.6,2.09814]
[1744777305613,1e-08,1577.7,1577.6,7.97584]
[1744777306115,1e-08,1577.7,1577.6,48.77584]
[1744777307406,3.2078,1578.5,1578.4,1.2672]
[1744777307602,10.27383996,1578.6,1578.5,1.26712]
[1744777307901,8.92415951,1578.6,1578.5,4.67222]
[1744777308106,8.92415951,1578.6,1578.5,50.47222]
[1744777308312,3.59825951,1578.6,1578.5,50.47222]
[1744777308514,3.59825951,1578.6,1578.5,50.57722]
[1744777309210,4.86529951,1578.6,1578.5,47.6649]
[1744777309410,3.59825951,1578.6,1578.5,47.6649]
[1744777309611,4.86529951,1578.6,1578.5,47.6649]
[1744777309811,2.93734,1578.6,1578.5,45.905]
[1744777311411,1.6703,1578.6,1578.5,40.8]
[1744777311617,2.93734,1578.6,1578.5,40.8]
[1744777311819,1.6703,1578.6,1578.5,42.06712]
[1744777312005,1.6703,1578.6,1578.5,40.8]
[1744777312213,2.93734,1578.6,1578.5,40.8]
[1744777313420,1.26712,1578.5,1578.4,0.00948046]
[1744777313712,3.78882,1578.5,1578.4,0.00948046]
[1744777313918,8.78882,1578.5,1578.4,0.00948046]
[1744777314419,3.78882,1578.5,1578.4,0.00948046]
[1744777315318,14.72482,1578.5,1578.4,1e-08]
[1744777315508,19.82782,1578.5,1578.4,1e-08]
[1744777317615,1.26736,1578.2,1578.1,40.8]
[1744777317814,4.47516,1578.2,1578.1,40.8]
[1744777318010,3.2078,1578.2,1578.1,52.17144]
[1744777318215,0.00948046,1578.7,1578.6,1.26704]
[1744777318417,0.00948046,1578.7,1578.6,9.57884]
[1744777318716,0.00948046,1578.7,1578.6,14.57884]
[1744777321020,0.00948046,1578.7,1578.6,9.57884]
[1744777321215,0.00948046,1578.7,1578.6,14.57884]
[1744777322821,0.00948046,1578.7,1578.6,3.2078]
[1744777323026,0.00948046,1578.7,1578.5,3.2078]
[1744777323518,1.26709,1578.6,1578.4,2.8893]
[1744777323717,1.75608046,1578.7,1578.6,1.26704]
[1744777323918,0.00948046,1578.7,1578.6,2.88914]
[1744777324126,0.00948046,1578.7,1578.6,12.99114]
[1744777324527,4.6e-07,1578.7,1578.6,12.99114]
[1744777325029,4.6e-07,1578.7,1578.6,53.79114]
[1744777325622,5.936,1579.6,1579.5,1.26632]
[1744777325816,2.08954,1579.9,1579.7,1.26615]
[1744777326034,1.2663,1579.6,1579.5,3.2078]
[1744777326328,1.2663,1579.6,1579.5,44.0078]
[1744777327429,2.1527,1579.6,1579.5,44.0078]
[1744777328129,1.27569046,1579.7,1579.5,45.2741]
[1744777328331,1.26624,1579.6,1579.5,44.0078]
[1744777328827,6.26624,1579.6,1579.5,40.8]
[1744777329032,2.88904,1579.6,1579.5,44.0078]
[1744777329228,2.88904,1579.6,1579.5,45.27412]
[1744777329429,1.6228,1579.6,1579.5,45.27412]
[1744777329835,2.88904,1579.6,1579.5,45.27412]
[1744777330130,1.6228,1579.6,1579.5,45.27412]
[1744777330319,2.88904,1579.6,1579.5,50.39712]
[1744777330523,1.6228,1579.6,1579.5,50.39712]
[1744777330725,2.88904,1579.6,1579.5,50.39712]
[1744777331125,2.88904,1579.6,1579.5,49.1308]
[1744777331519,2.88904,1579.6,1579.5,50.39712]
[1744777331723,1.6228,1579.6,1579.5,50.39712]
[1744777332926,2.88904,1579.6,1579.5,49.1308]
[1744777333135,2.88904,1579.6,1579.5,45.923]
[1744777333327,2.88904,1579.6,1579.5,49.1308]
[1744777335834,2.88904,1579.6,1579.5,40.8]
[1744777336039,2.88904,1579.6,1579.5,45.27412]
[1744777336337,0.00948046,1579.7,1579.6,1.26624]
[1744777336521,0.00948046,1579.7,1579.6,6.38824]
[1744777336932,1.27564046,1579.7,1579.6,6.38824]
[1744777337635,1.27564046,1579.7,1579.6,5.122]
[1744777337823,1.27564046,1579.7,1579.6,6.38824]
[1744777338027,0.00948046,1579.7,1579.6,47.18824]
[1744777339334,1.27564046,1579.7,1579.6,45.922]
[1744777340136,2.12254046,1579.7,1579.6,45.922]
[1744777340340,7.12254046,1579.7,1579.6,40.8]
[1744777340638,1.26632,1579.5,1579.4,0.00948046]
[1744777340939,1.26632,1579.5,1579.4,40.80948046]
[1744777342434,1.2663,1579.6,1579.5,1.26629]
[1744777342735,2.9617,1579.6,1579.5,1.26629]
[1744777342932,1.26632,1579.5,1579.4,40.80948046]
[1744777343133,2.96172,1579.5,1579.4,40.80948046]
[1744777343323,2.96172,1579.5,1579.4,42.07582046]
[1744777343739,2.96172,1579.5,1579.4,40.80948046]
[1744777345741,17.10552,1579.5,1579.4,1e-08]
[1744777349834,17.10552,1579.5,1578.8,3.2078]
[1744777349835,1.2668,1578.9,1578.8,3.2078]
[1744777350138,1.26704,1578.6,1578.5,3.2078]
[1744777350839,1.26704,1578.6,1578.3,40.8]
[1744777350840,1.2672,1578.4,1578.3,40.8]
[1744777353736,3.16854,1578.2,1577.4,8.39698768]
[1744777354044,1.26784,1577.6,1577.5,1.7595]
[1744777354233,1.26784,1577.6,1577.5,42.5595]
[1744777354634,2.89714,1577.6,1577.5,42.5595]
[1744777354941,1.6293,1577.6,1577.5,43.82743]
[1744777355240,2.89714,1577.6,1577.5,42.5595]
[1744777355435,1.26784,1577.6,1577.5,42.5595]
[1744777356444,0.00948046,1577.7,1577.6,1.26784]
[1744777356643,0.00948046,1577.7,1577.6,5.36854]
[1744777356845,0.00948046,1577.7,1577.6,10.36854]
[1744777357142,0.00948046,1577.7,1577.6,51.16854]
[1744777357539,0.00948046,1577.7,1577.6,46.16854]
[1744777358237,0.00948046,1577.7,1577.6,51.16854]
[1744777360141,1.27724046,1577.7,1577.6,46.16854]
[1744777360645,0.00948046,1577.7,1577.6,46.16854]
[1744777362245,0.00948046,1577.7,1577.6,51.16854]
[1744777363045,0.00948046,1577.7,1577.6,46.16854]
[1744777365146,0.00948046,1577.7,1577.6,51.16854]
[1744777365542,0.00948046,1577.7,1577.6,46.16854]
[1744777366151,0.00948046,1577.7,1577.6,48.65064]
[1744777366346,1e-08,1577.7,1577.6,53.65064]
[1744777366559,1.7051,1578.6,1578.3,1.26724]
[1744777366747,0.9085,1578.8,1578.4,4.8374]
[1744777366952,2.97208,1578.7,1578.5,1.6296]
[1744777367245,2.97208,1578.7,1578.6,42.06704]
[1744777367246,1.26698,1578.7,1578.6,42.06704]
[1744777367547,9.47478,1578.7,1578.6,40.8]
[1744777368846,10.38328,1578.7,1578.6,40.8]
[1744777369446,1.26704,1578.6,1578.5,0.00948046]
[1744777369745,3.16781,1578.5,1577.8,3.16922]
[1744777370051,8.07244,1578.4,1577.9,42.4164]
[1744777370451,1.2674,1578.2,1578.1,1.26742]
[1744777370650,1.2674,1578.2,1578.1,1.6164]
[1744777371443,1.26744,1578.1,1578.0,5.038]
[1744777371643,2.89304,1578.1,1578.0,6.30552]
[1744777371851,2.89304,1578.1,1578.0,6.687]
[1744777372152,1.26752,1578.0,1577.9,40.8]
[1744777372350,2.89312,1578.0,1577.9,40.8]
[1744777372552,2.89312,1578.0,1577.9,42.449]
[1744777373549,2.89312,1578.0,1577.9,40.8]
[1744777373750,6.10092,1578.0,1577.9,40.8]
[1744777374545,11.10092,1578.0,1577.9,40.8]
[1744777375452,6.10092,1578.0,1577.9,40.8]
[1744777375751,6.10092,1578.0,1577.9,40.83729145]
[1744777376248,6.10092,1578.0,1577.9,40.87278818]
[1744777376953,7.02912,1578.0,1577.9,40.88094332]
[1744777377751,6.10092,1578.0,1577.9,40.88094332]
[1744777378147,6.10092,1578.0,1577.9,42.54584332]
[1744777379152,7.22792,1578.4,1577.9,42.54584332]
[1744777379153,3.2078,1578.5,1578.4,1.26713]
[1744777379349,1.26709,1578.6,1578.4,1.2672]
[1744777379550,1.26709,1578.6,1578.5,3.04150115]
[1744777379745,1.26704,1578.6,1578.5,1.77438115]
[1744777379951,3.01552,1578.7,1578.6,1.26704]
[1744777380150,1.26704,1578.6,1578.5,1.77438115]
[1744777380643,1.26704,1578.6,1578.5,0.10948115]
[1744777380841,4.47484,1578.6,1578.5,0.10948115]
[1744777381053,5.41184,1578.6,1578.5,0.10948115]
[1744777382761,4.47484,1578.6,1578.5,0.10948115]
[1744777382950,4.47484,1578.6,1578.5,1.85718115]
[1744777383148,1.26704,1578.6,1578.5,1.85718115]
[1744777383351,4.47484,1578.6,1578.5,0.10948115]
[1744777383549,5.35114,1578.6,1578.5,0.10948115]
[1744777384060,2.14334,1578.6,1578.5,0.10948115]
[1744777384255,1.26704,1578.6,1578.5,0.10948115]
[1744777384452,1.26704,1578.6,1578.5,3.07060115]
[1744777384649,3.21728046,1578.8,1578.5,6.80348115]
[1744777384855,0.00948046,1578.8,1578.7,1.26696]
[1744777385057,0.00948046,1578.8,1578.7,6.16876]
[1744777385356,1.26664,1579.1,1579.0,1.26666]
[1744777385558,1.25737972,1579.1,1579.0,45.96948115]
[1744777385755,2.87934,1579.1,1579.0,45.96948115]
[1744777386055,1.6127,1579.1,1579.0,47.23620115]
[1744777387559,0.00948046,1579.2,1579.1,1.26664]
[1744777387765,1.27604046,1579.2,1579.1,1.6725]
[1744777387954,1.26664,1579.1,1579.0,45.96948115]
[1744777388155,2.88394,1579.1,1579.0,45.96948115]
[1744777388461,2.88394,1579.1,1579.0,40.90948115]
[1744777389160,2.88394,1579.1,1579.0,42.58198115]
[1744777389764,2.88394,1579.1,1579.0,43.84870115]
[1744777390664,1.26664,1579.1,1579.0,42.58198115]
[1744777390859,1.26672,1579.0,1578.9,0.00948046]
[1744777391056,9.72432,1579.0,1578.9,0.00022018]
[1744777391257,15.66032,1579.0,1578.9,0.00022018]
[1744777391862,3.16741,1578.7,1578.4,40.8]
[1744777392060,1.26725,1578.4,1578.3,1.26727]
[1744777392558,1.26725,1578.4,1578.3,42.06727]
[1744777392757,1.26725,1578.4,1578.3,40.8]
[1744777394064,4.47505,1578.4,1578.3,40.8]
[1744777397573,3.2078,1578.4,1578.3,40.8]
[1744777397871,4.4748,1578.7,1578.5,1.26706]
[1744777398067,4.4748,1578.7,1578.6,1.6839]
[1744777398256,4.4748,1578.7,1578.6,2.95094]
[1744777398458,4.4748,1578.7,1578.6,42.4839]
[1744777399363,4.4748,1578.7,1578.6,40.8]
[1744777399865,6.1844,1578.7,1578.6,40.8]
[1744777401773,1.26712,1578.5,1578.4,1.5952]
[1744777401972,1.26728,1578.3,1578.2,5.058]
[1744777402174,1.26728,1578.3,1578.2,6.6532]
[1744777402475,1.26728,1578.3,1578.2,47.4532]
[1744777403271,1.26744,1578.1,1578.0,6.6532]
[1744777403666,1.26744,1578.1,1578.0,7.92072]
[1744777403868,1.26744,1578.1,1578.0,48.72072]
[1744777404173,4.47524,1578.1,1578.0,47.4532]
[1744777404373,4.47524,1578.1,1578.0,45.858]
[1744777404571,4.47524,1578.1,1578.0,40.8]
[1744777405477,6.15654,1578.1,1578.0,40.8]
[1744777407872,6.15654,1578.1,1578.0,42.06752]
[1744777408070,6.15654,1578.1,1578.0,40.8]
[1744777412481,6.15654,1578.1,1578.0,42.06752]
[1744777412780,6.15654,1578.1,1578.0,42.4742]
[1744777413185,6.15654,1578.1,1578.0,43.74172]
[1744777414283,2.94874,1578.1,1578.0,40.8]
[1744777418475,1.26768,1577.8,1577.7,1.2677]
[1744777419184,1.26776,1577.7,1577.6,2.98158]
[1744777419372,1.7315,1577.9,1577.7,1.26775]
[1744777419576,1.26775,1577.8,1577.7,2.98155]
[1744777419974,1.26775,1577.8,1577.7,43.78155]
[1744777421087,1.26775,1577.8,1577.7,42.5138]
[1744777421580,1.26775,1577.8,1577.7,43.78156]
[1744777421787,1.26775,1577.8,1577.7,42.5138]
[1744777422288,1.26775,1577.8,1577.7,43.78156]
[1744777422487,2.99917,1577.9,1577.8,1.26768]
[1744777422687,1.2676,1577.9,1577.8,2.87858]
[1744777422885,1.2676,1577.9,1577.8,3.78218]
[1744777423587,1.26768,1577.8,1577.7,40.8]
[1744777423883,1.26766,1577.9,1577.7,40.8]
[1744777424086,1.26766,1577.9,1577.8,2.89245]
[1744777424489,1.26766,1577.9,1577.8,1.6248]
[1744777424784,1.26817,1577.2,1577.0,92.817]
[1744777424982,1.26817,1577.2,1577.1,2.89302]
[1744777425190,1.27764083,1577.3,1577.1,2.89297]
[1744777425383,1.27764083,1577.3,1577.2,42.4248]
[1744777425687,1.27764083,1577.3,1577.2,43.69297]
[1744777425876,1.27764083,1577.3,1577.2,42.4248]
[1744777428290,1.27764083,1577.3,1577.2,43.69297]